[Event "Early-Titled-Tuesday-Blitz-June-18-2024"]
[Site "Chess.com"]
[Date "2024.06.18"]
[Round "6"]
[White "Rosh1610"]
[Black "Caroexpert"]
[Result "1-0"]
[WhiteElo "2493"]
[BlackElo "2634"]
[TimeControl "180+1"]
[EndTime "9:09:39 PDT"]
[Termination "Rosh1610 won on time"]

1. e4 {[%clk 0:03:00.1]} 1... c6 {[%clk 0:02:59.3]} 2. Nc3 {[%clk 0:02:59.7]}
2... d5 {[%clk 0:02:59.7]} 3. Nf3 {[%clk 0:02:59.6]} 3... Bg4 {[%clk 0:02:59.6]}
4. h3 {[%clk 0:02:59.1]} 4... Bxf3 {[%clk 0:02:59.7]} 5. Qxf3 {[%clk 0:02:58.9]}
5... Nf6 {[%clk 0:02:56.5]} 6. Be2 {[%clk 0:02:57.6]} 6... g6 {[%clk 0:02:56]}
7. O-O {[%clk 0:02:55.4]} 7... Bg7 {[%clk 0:02:53.4]} 8. d3 {[%clk 0:02:55.3]}
8... O-O {[%clk 0:02:50.5]} 9. Bf4 {[%clk 0:02:51.7]} 9... d4 {[%clk 0:02:32.7]}
10. Nb1 {[%clk 0:02:50]} 10... Nbd7 {[%clk 0:02:21.2]} 11. Nd2 {[%clk
0:02:49.3]} 11... e5 {[%clk 0:02:20.9]} 12. Bh2 {[%clk 0:02:45.7]} 12... Ne8
{[%clk 0:02:20.6]} 13. Qg3 {[%clk 0:02:43.7]} 13... Bh6 {[%clk 0:02:11.1]} 14.
Nc4 {[%clk 0:02:36.9]} 14... Bf4 {[%clk 0:01:56]} 15. Qg4 {[%clk 0:02:23.9]}
15... h5 {[%clk 0:01:49.9]} 16. Qf3 {[%clk 0:02:23.8]} 16... Bxh2+ {[%clk
0:01:33]} 17. Kxh2 {[%clk 0:02:24.7]} 17... f5 {[%clk 0:01:33.4]} 18. exf5
{[%clk 0:02:20.6]} 18... Rxf5 {[%clk 0:01:31.9]} 19. Qg3 {[%clk 0:02:20.8]}
19... Qf6 {[%clk 0:01:31.7]} 20. f3 {[%clk 0:01:53.9]} 20... h4 {[%clk 0:01:22]}
21. Qf2 {[%clk 0:01:45.4]} 21... Ng7 {[%clk 0:01:21.4]} 22. Nd2 {[%clk
0:01:44.7]} 22... Ne6 {[%clk 0:01:14.1]} 23. Ne4 {[%clk 0:01:41.1]} 23... Qe7
{[%clk 0:01:14.1]} 24. c3 {[%clk 0:01:36.7]} 24... Nf4 {[%clk 0:01:06.1]} 25.
Rae1 {[%clk 0:01:27.6]} 25... c5 {[%clk 0:00:54.7]} 26. Rd1 {[%clk 0:01:24.5]}
26... Kg7 {[%clk 0:00:45.6]} 27. c4 {[%clk 0:01:21.3]} 27... Rh8 {[%clk
0:00:41.5]} 28. Rfe1 {[%clk 0:01:21.3]} 28... Nf6 {[%clk 0:00:39.6]} 29. Nxf6
{[%clk 0:01:14.5]} 29... Qxf6 {[%clk 0:00:40.5]} 30. Bf1 {[%clk 0:01:14.6]}
30... Rhh5 {[%clk 0:00:36.1]} 31. Re4 {[%clk 0:01:07.6]} 31... Rhg5 {[%clk
0:00:35.6]} 32. Rd2 {[%clk 0:00:43.5]} 32... Rg3 {[%clk 0:00:33.9]} 33. Qe1
{[%clk 0:00:40.6]} 33... Rfg5 {[%clk 0:00:18.8]} 34. Rf2 {[%clk 0:00:31.8]}
34... Qf5 {[%clk 0:00:16.4]} 35. b4 {[%clk 0:00:25.4]} 35... b6 {[%clk
0:00:15.2]} 36. bxc5 {[%clk 0:00:25.3]} 36... bxc5 {[%clk 0:00:16.1]} 37. Qa5
{[%clk 0:00:25.3]} 37... Nxh3 {[%clk 0:00:11.5]} 38. gxh3 {[%clk 0:00:24.1]}
38... Rxf3 {[%clk 0:00:09.8]} 39. Qc7+ {[%clk 0:00:15]} 39... Kh6 {[%clk
0:00:05.8]} 40. Rxh4+ {[%clk 0:00:14.9]} 40... Rh5 {[%clk 0:00:06.2]} 41. Rxh5+
{[%clk 0:00:14.9]} 41... gxh5 {[%clk 0:00:04.8]} 42. Qd6+ {[%clk 0:00:13.7]}
42... Kg5 {[%clk 0:00:03.7]} 43. Rg2+ {[%clk 0:00:13.6]} 43... Kf4 {[%clk
0:00:01.3]} 44. Qh6+ {[%clk 0:00:13.7]} 1-0

[Event "Early-Titled-Tuesday-Blitz-June-18-2024"]
[Site "Chess.com"]
[Date "2024.06.18"]
[Round "6"]
[White "TheBigBoss04"]
[Black "GMBenjaminBok"]
[Result "1-0"]
[WhiteElo "2821"]
[BlackElo "2985"]
[TimeControl "180+1"]
[EndTime "9:09:42 PDT"]
[Termination "TheBigBoss04 won on time"]

1. c4 {[%clk 0:03:00.9]} 1... c5 {[%clk 0:02:53.3]} 2. Nc3 {[%clk 0:02:59.7]}
2... g6 {[%clk 0:02:51.3]} 3. g3 {[%clk 0:02:59.2]} 3... Bg7 {[%clk 0:02:50.1]}
4. Bg2 {[%clk 0:02:59]} 4... Nc6 {[%clk 0:02:50.3]} 5. e3 {[%clk 0:02:56.3]}
5... Nf6 {[%clk 0:02:18.7]} 6. Nge2 {[%clk 0:02:51]} 6... O-O {[%clk 0:02:18.2]}
7. d3 {[%clk 0:02:48.4]} 7... d6 {[%clk 0:02:09.9]} 8. b3 {[%clk 0:02:46.6]}
8... Rb8 {[%clk 0:02:01.5]} 9. Bb2 {[%clk 0:02:45.8]} 9... a6 {[%clk 0:02:02.1]}
10. Qd2 {[%clk 0:02:45]} 10... Bd7 {[%clk 0:02:01.3]} 11. h3 {[%clk 0:02:39.4]}
11... b5 {[%clk 0:02:00.8]} 12. Rc1 {[%clk 0:02:30.9]} 12... Qc8 {[%clk
0:01:59.2]} 13. f4 {[%clk 0:02:28.9]} 13... Re8 {[%clk 0:01:52.3]} 14. g4 {[%clk
0:02:14.6]} 14... Qc7 {[%clk 0:01:40.5]} 15. O-O {[%clk 0:02:10.4]} 15... Qa5
{[%clk 0:01:34.8]} 16. Rcd1 {[%clk 0:01:54.3]} 16... Red8 {[%clk 0:01:14.3]} 17.
Ng3 {[%clk 0:01:48.3]} 17... e6 {[%clk 0:01:06.1]} 18. g5 {[%clk 0:01:29.6]}
18... Ne8 {[%clk 0:01:04.9]} 19. h4 {[%clk 0:01:19.1]} 19... Nb4 {[%clk
0:00:37.9]} 20. a3 {[%clk 0:01:00.1]} 20... Nxd3 {[%clk 0:00:37.9]} 21. Qxd3
{[%clk 0:00:54.4]} 21... bxc4 {[%clk 0:00:38.2]} 22. Qxc4 {[%clk 0:00:50.6]}
22... d5 {[%clk 0:00:38.2]} 23. Nxd5 {[%clk 0:00:16.7]} 23... Bxb2 {[%clk
0:00:22.2]} 24. Ne7+ {[%clk 0:00:17.2]} 24... Kf8 {[%clk 0:00:22.5]} 25. Rxd7
{[%clk 0:00:18]} 25... Rxd7 {[%clk 0:00:19.5]} 26. Nc6 {[%clk 0:00:18.7]} 26...
Qb6 {[%clk 0:00:11.1]} 27. Nxb8 {[%clk 0:00:19.1]} 27... Qxb8 {[%clk 0:00:12]}
28. Qxc5+ {[%clk 0:00:18.4]} 28... Kg8 {[%clk 0:00:11.7]} 29. b4 {[%clk
0:00:15]} 29... Bxa3 {[%clk 0:00:10.5]} 30. Rb1 {[%clk 0:00:10.9]} 30... Rc7
{[%clk 0:00:06.4]} 31. Qa5 {[%clk 0:00:08]} 31... Rc1+ {[%clk 0:00:06.5]} 32.
Rxc1 {[%clk 0:00:07.4]} 32... Bxc1 {[%clk 0:00:07.4]} 33. Nf1 {[%clk 0:00:06.2]}
33... Bd2 {[%clk 0:00:06.1]} 34. Qxa6 {[%clk 0:00:06.2]} 34... Bxb4 {[%clk
0:00:05.7]} 35. Qc4 {[%clk 0:00:04.3]} 35... Nd6 {[%clk 0:00:04]} 36. Qc6 {[%clk
0:00:04.2]} 36... Nf5 {[%clk 0:00:03.9]} 37. h5 {[%clk 0:00:04]} 37... gxh5
{[%clk 0:00:04.6]} 38. Bh3 {[%clk 0:00:03.7]} 38... Nxe3 {[%clk 0:00:01.8]} 39.
Nxe3 {[%clk 0:00:03.6]} 39... Qxf4 {[%clk 0:00:02.3]} 40. Ng2 {[%clk 0:00:02.2]}
40... Qxg5 {[%clk 0:00:02]} 41. Qc8+ {[%clk 0:00:01.4]} 41... Kg7 {[%clk
0:00:02.1]} 42. Qc4 {[%clk 0:00:01.1]} 42... Bc5+ {[%clk 0:00:02.2]} 43. Kh1
{[%clk 0:00:01]} 43... Qe5 {[%clk 0:00:01.2]} 44. Qh4 {[%clk 0:00:01.1]} 44...
Qa1+ {[%clk 0:00:01]} 45. Kh2 {[%clk 0:00:01.6]} 45... Bd6+ {[%clk 0:00:01.3]}
46. Nf4 {[%clk 0:00:01.7]} 46... Qe5 {[%clk 0:00:01.2]} 47. Qg3+ {[%clk
0:00:01.7]} 47... Kf8 {[%clk 0:00:01]} 48. Nxh5 {[%clk 0:00:01.7]} 1-0

[Event "Early-Titled-Tuesday-Blitz-June-18-2024"]
[Site "Chess.com"]
[Date "2024.06.18"]
[Round "6"]
[White "Yeritsyaan"]
[Black "Slovineanu"]
[Result "0-1"]
[WhiteElo "2664"]
[BlackElo "2559"]
[TimeControl "180+1"]
[EndTime "9:09:42 PDT"]
[Termination "Slovineanu won by resignation"]

1. e4 {[%clk 0:02:54.8]} 1... c6 {[%clk 0:02:59.7]} 2. d4 {[%clk 0:02:49]} 2...
d5 {[%clk 0:03:00.1]} 3. Nc3 {[%clk 0:02:49.7]} 3... dxe4 {[%clk 0:02:59.8]} 4.
Nxe4 {[%clk 0:02:50.6]} 4... Nf6 {[%clk 0:03:00.2]} 5. Nxf6+ {[%clk 0:02:51]}
5... exf6 {[%clk 0:03:00.5]} 6. Be3 {[%clk 0:02:49.1]} 6... Bd6 {[%clk
0:03:00.6]} 7. c3 {[%clk 0:02:46.3]} 7... Na6 {[%clk 0:02:50.5]} 8. Bd3 {[%clk
0:02:45.5]} 8... Nc7 {[%clk 0:02:49.3]} 9. Ne2 {[%clk 0:02:42.6]} 9... Be6
{[%clk 0:02:47.9]} 10. Qd2 {[%clk 0:02:40.1]} 10... a5 {[%clk 0:02:45.9]} 11.
O-O {[%clk 0:02:38.7]} 11... O-O {[%clk 0:02:45.3]} 12. f4 {[%clk 0:02:35.4]}
12... f5 {[%clk 0:02:36.2]} 13. b3 {[%clk 0:02:28.7]} 13... b5 {[%clk
0:02:29.3]} 14. c4 {[%clk 0:02:22.8]} 14... Re8 {[%clk 0:02:23.8]} 15. Qc2
{[%clk 0:02:18.3]} 15... g6 {[%clk 0:02:23]} 16. Bf2 {[%clk 0:02:07.4]} 16...
Bd7 {[%clk 0:02:18]} 17. d5 {[%clk 0:02:05.9]} 17... cxd5 {[%clk 0:01:59]} 18.
c5 {[%clk 0:02:05.5]} 18... Bf8 {[%clk 0:01:54.2]} 19. Nd4 {[%clk 0:02:02.8]}
19... Bg7 {[%clk 0:01:46]} 20. Rac1 {[%clk 0:02:01.4]} 20... b4 {[%clk
0:01:29.8]} 21. c6 {[%clk 0:01:59.3]} 21... Bc8 {[%clk 0:01:29.7]} 22. Rfe1
{[%clk 0:01:55.7]} 22... Ba6 {[%clk 0:01:28.1]} 23. Rxe8+ {[%clk 0:01:52.2]}
23... Qxe8 {[%clk 0:01:28.3]} 24. Bxa6 {[%clk 0:01:50]} 24... Rxa6 {[%clk
0:01:26.6]} 25. Nf3 {[%clk 0:01:37.3]} 25... Bc3 {[%clk 0:01:17.8]} 26. Ne5
{[%clk 0:01:35.1]} 26... f6 {[%clk 0:01:15.5]} 27. Nd3 {[%clk 0:01:15.1]} 27...
Rxc6 {[%clk 0:01:14.4]} 28. Kh1 {[%clk 0:01:12.5]} 28... Ne6 {[%clk 0:01:06.2]}
29. Qe2 {[%clk 0:01:10.1]} 29... Qc8 {[%clk 0:00:58.5]} 30. Qf3 {[%clk
0:01:07.4]} 30... Qd7 {[%clk 0:00:55.6]} 31. Rd1 {[%clk 0:01:03.6]} 31... Kf7
{[%clk 0:00:49.8]} 32. h4 {[%clk 0:01:01.1]} 32... h5 {[%clk 0:00:49.3]} 33. Nc1
{[%clk 0:00:51.2]} 33... d4 {[%clk 0:00:46]} 34. Ne2 {[%clk 0:00:51.1]} 34...
Rd6 {[%clk 0:00:45.3]} 35. Nc1 {[%clk 0:00:48.9]} 35... Nc5 {[%clk 0:00:40.6]}
36. Nd3 {[%clk 0:00:49.3]} 36... Nxd3 {[%clk 0:00:38.6]} 37. Rxd3 {[%clk
0:00:48.6]} 37... Qc6 {[%clk 0:00:37.9]} 38. Qd1 {[%clk 0:00:46.8]} 38... Qe4
{[%clk 0:00:37.5]} 39. Bg3 {[%clk 0:00:46.3]} 39... Re6 {[%clk 0:00:36.4]} 40.
Kh2 {[%clk 0:00:42.8]} 40... Qe2 {[%clk 0:00:36.3]} 41. Rxd4 {[%clk 0:00:42.8]}
41... Bxd4 {[%clk 0:00:28.2]} 42. Qxd4 {[%clk 0:00:43.7]} 42... Qxa2 {[%clk
0:00:17.3]} 43. Qd7+ {[%clk 0:00:43.8]} 43... Re7 {[%clk 0:00:17.6]} 44. Qd5+
{[%clk 0:00:44.4]} 44... Kg7 {[%clk 0:00:17.9]} 45. Qd6 {[%clk 0:00:41.7]} 45...
Rf7 {[%clk 0:00:16.7]} 46. Qd3 {[%clk 0:00:35.4]} 46... a4 {[%clk 0:00:16.4]}
47. bxa4 {[%clk 0:00:35.4]} 47... b3 {[%clk 0:00:15.4]} 48. Qc4 {[%clk
0:00:35.5]} 48... Qa3 {[%clk 0:00:13.8]} 49. Qb5 {[%clk 0:00:33.5]} 49... b2
{[%clk 0:00:12.9]} 50. Bf2 {[%clk 0:00:34.1]} 50... Qa2 {[%clk 0:00:11.9]} 51.
Bd4 {[%clk 0:00:28]} 51... b1=Q {[%clk 0:00:11.7]} 52. Bxf6+ {[%clk 0:00:27.7]}
52... Rxf6 {[%clk 0:00:11.1]} 53. Qd7+ {[%clk 0:00:25.7]} 53... Rf7 {[%clk
0:00:11.4]} 54. Qd4+ {[%clk 0:00:26.3]} 54... Kh7 {[%clk 0:00:11.6]} 0-1

[Event "Early-Titled-Tuesday-Blitz-June-18-2024"]
[Site "Chess.com"]
[Date "2024.06.18"]
[Round "6"]
[White "tetrix83"]
[Black "ulises2013"]
[Result "0-1"]
[WhiteElo "2679"]
[BlackElo "2867"]
[TimeControl "180+1"]
[EndTime "9:09:44 PDT"]
[Termination "ulises2013 won on time"]

1. e4 {[%clk 0:03:00.9]} 1... g6 {[%clk 0:03:00.9]} 2. d4 {[%clk 0:03:00.4]}
2... Bg7 {[%clk 0:02:57.5]} 3. Nf3 {[%clk 0:03:01.3]} 3... c5 {[%clk 0:02:56.5]}
4. c3 {[%clk 0:02:59.2]} 4... cxd4 {[%clk 0:02:53.3]} 5. cxd4 {[%clk 0:03:00.1]}
5... d5 {[%clk 0:02:53.9]} 6. e5 {[%clk 0:02:59.8]} 6... Nc6 {[%clk 0:02:54.1]}
7. Bb5 {[%clk 0:02:58.5]} 7... Bg4 {[%clk 0:02:54]} 8. Nbd2 {[%clk 0:02:55.6]}
8... Rc8 {[%clk 0:02:53.1]} 9. O-O {[%clk 0:02:53.4]} 9... e6 {[%clk 0:02:53.3]}
10. h3 {[%clk 0:02:52.1]} 10... Bxf3 {[%clk 0:02:53.3]} 11. Nxf3 {[%clk
0:02:52.1]} 11... Ne7 {[%clk 0:02:53.5]} 12. g4 {[%clk 0:02:38.8]} 12... O-O
{[%clk 0:02:53]} 13. Bf4 {[%clk 0:02:35.9]} 13... Qb6 {[%clk 0:02:49.3]} 14.
Bxc6 {[%clk 0:02:29.5]} 14... Nxc6 {[%clk 0:02:50.2]} 15. Qd2 {[%clk 0:02:28.7]}
15... f6 {[%clk 0:02:22.5]} 16. Rad1 {[%clk 0:01:42.1]} 16... fxe5 {[%clk
0:02:16.6]} 17. Nxe5 {[%clk 0:01:41.4]} 17... Nxe5 {[%clk 0:02:09.8]} 18. dxe5
{[%clk 0:01:40]} 18... Rc4 {[%clk 0:01:58.6]} 19. Be3 {[%clk 0:01:37.6]} 19...
Qc7 {[%clk 0:01:58.5]} 20. f4 {[%clk 0:01:31.3]} 20... Rc2 {[%clk 0:01:58.1]}
21. Qd4 {[%clk 0:01:28.5]} 21... g5 {[%clk 0:01:45]} 22. Rc1 {[%clk 0:01:20.8]}
22... gxf4 {[%clk 0:01:32.3]} 23. Bxf4 {[%clk 0:01:19]} 23... b6 {[%clk
0:01:16.6]} 24. b3 {[%clk 0:00:49.3]} 24... Rf7 {[%clk 0:01:06.3]} 25. Rxc2
{[%clk 0:00:48.1]} 25... Qxc2 {[%clk 0:01:07.2]} 26. Rf2 {[%clk 0:00:48.1]}
26... Qb1+ {[%clk 0:01:02.8]} 27. Kg2 {[%clk 0:00:47]} 27... Bf8 {[%clk
0:01:01.8]} 28. Be3 {[%clk 0:00:45.4]} 28... Bc5 {[%clk 0:00:46.2]} 29. Qa4
{[%clk 0:00:07.5]} 29... Rxf2+ {[%clk 0:00:31.4]} 30. Bxf2 {[%clk 0:00:07.1]}
30... Bf8 {[%clk 0:00:32.1]} 31. Qd7 {[%clk 0:00:05.9]} 31... Qe4+ {[%clk
0:00:31.8]} 32. Kf1 {[%clk 0:00:05.9]} 32... Qxe5 {[%clk 0:00:32.1]} 33. Qxa7
{[%clk 0:00:05.6]} 33... b5 {[%clk 0:00:29.5]} 34. Qd4 {[%clk 0:00:05]} 34...
Qc7 {[%clk 0:00:22.8]} 35. a4 {[%clk 0:00:03.6]} 35... bxa4 {[%clk 0:00:21.2]}
36. bxa4 {[%clk 0:00:04.2]} 36... Qc1+ {[%clk 0:00:21]} 37. Kg2 {[%clk 0:00:04]}
37... Qc6 {[%clk 0:00:21.7]} 38. h4 {[%clk 0:00:02.3]} 38... Bg7 {[%clk
0:00:20.8]} 39. Qc5 {[%clk 0:00:01.7]} 39... Qxa4 {[%clk 0:00:18.5]} 40. Qc8+
{[%clk 0:00:02]} 40... Kf7 {[%clk 0:00:19]} 41. Qb7+ {[%clk 0:00:02.3]} 41...
Kg8 {[%clk 0:00:13.5]} 42. Qc8+ {[%clk 0:00:02.5]} 42... Kf7 {[%clk 0:00:11.2]}
43. Qb7+ {[%clk 0:00:02.6]} 43... Kf6 {[%clk 0:00:08.1]} 44. g5+ {[%clk
0:00:01]} 44... Kg6 {[%clk 0:00:08.4]} 45. Qb1+ {[%clk 0:00:01.5]} 45... Qe4+
{[%clk 0:00:07.6]} 46. Qxe4+ {[%clk 0:00:01.7]} 46... dxe4 {[%clk 0:00:08.5]}
47. Kg3 {[%clk 0:00:01.8]} 47... Kf5 {[%clk 0:00:09]} 48. Be3 {[%clk 0:00:01.7]}
48... Be5+ {[%clk 0:00:09.4]} 49. Kg2 {[%clk 0:00:01.2]} 49... Kg4 {[%clk
0:00:07.1]} 0-1

[Event "Early-Titled-Tuesday-Blitz-June-18-2024"]
[Site "Chess.com"]
[Date "2024.06.18"]
[Round "6"]
[White "Ginger_GM"]
[Black "jaramsdal"]
[Result "0-1"]
[WhiteElo "2625"]
[BlackElo "2459"]
[TimeControl "180+1"]
[EndTime "9:09:44 PDT"]
[Termination "jaramsdal won by resignation"]

1. f4 {[%clk 0:03:00.9]} 1... c5 {[%clk 0:02:56.8]} 2. Nf3 {[%clk 0:03:00]} 2...
Nc6 {[%clk 0:02:56.9]} 3. e3 {[%clk 0:02:58.6]} 3... g6 {[%clk 0:02:57.1]} 4.
Bb5 {[%clk 0:02:57.2]} 4... Bg7 {[%clk 0:02:56.2]} 5. Bxc6 {[%clk 0:02:56.6]}
5... dxc6 {[%clk 0:02:57.1]} 6. O-O {[%clk 0:02:55.6]} 6... Nf6 {[%clk
0:02:55.6]} 7. d3 {[%clk 0:02:54.2]} 7... c4 {[%clk 0:02:47.4]} 8. dxc4 {[%clk
0:02:29.3]} 8... Qxd1 {[%clk 0:02:35.6]} 9. Rxd1 {[%clk 0:02:28.9]} 9... Be6
{[%clk 0:02:21]} 10. Nc3 {[%clk 0:02:04.2]} 10... Bxc4 {[%clk 0:02:17.7]} 11. e4
{[%clk 0:02:04.4]} 11... Rd8 {[%clk 0:02:12.1]} 12. Rxd8+ {[%clk 0:02:01.8]}
12... Kxd8 {[%clk 0:02:13]} 13. e5 {[%clk 0:02:00.3]} 13... Nd5 {[%clk
0:02:10.4]} 14. Nxd5 {[%clk 0:01:58.1]} 14... Bxd5 {[%clk 0:02:09.6]} 15. Kf2
{[%clk 0:01:51.9]} 15... f6 {[%clk 0:02:06.1]} 16. exf6 {[%clk 0:01:42.3]} 16...
Bxf6 {[%clk 0:02:04]} 17. c3 {[%clk 0:01:42.2]} 17... Kc7 {[%clk 0:01:41.2]} 18.
Be3 {[%clk 0:01:41.8]} 18... Rd8 {[%clk 0:01:39.9]} 19. a4 {[%clk 0:01:36.4]}
19... a5 {[%clk 0:01:35.4]} 20. g4 {[%clk 0:01:27.6]} 20... Bb3 {[%clk
0:01:24.8]} 21. Nd2 {[%clk 0:01:15.3]} 21... Bd5 {[%clk 0:01:02.8]} 22. Nf3
{[%clk 0:01:00.5]} 22... Bb3 {[%clk 0:01:00.8]} 23. Nd4 {[%clk 0:00:58.9]} 23...
Bd5 {[%clk 0:00:51.6]} 24. Kg3 {[%clk 0:00:53.7]} 24... e5 {[%clk 0:00:51.4]}
25. fxe5 {[%clk 0:00:53.9]} 25... Bxe5+ {[%clk 0:00:52.3]} 26. Bf4 {[%clk
0:00:54.4]} 26... Bxf4+ {[%clk 0:00:49.7]} 27. Kxf4 {[%clk 0:00:54.9]} 27...
Rf8+ {[%clk 0:00:48.6]} 28. Kg3 {[%clk 0:00:54]} 28... c5 {[%clk 0:00:38]} 29.
Nb5+ {[%clk 0:00:53.8]} 29... Kb6 {[%clk 0:00:38.4]} 30. Rd1 {[%clk 0:00:52.2]}
30... Rf3+ {[%clk 0:00:36.6]} 31. Kh4 {[%clk 0:00:50.3]} 31... Bc6 {[%clk
0:00:36.2]} 32. Kg5 {[%clk 0:00:30.1]} 32... Bxb5 {[%clk 0:00:27]} 33. axb5
{[%clk 0:00:29.8]} 33... Rh3 {[%clk 0:00:27.6]} 34. c4 {[%clk 0:00:28.7]} 34...
a4 {[%clk 0:00:26.4]} 35. Rd6+ {[%clk 0:00:27.9]} 35... Ka5 {[%clk 0:00:25.6]}
36. Rd7 {[%clk 0:00:27.8]} 36... b6 {[%clk 0:00:23.7]} 37. Ra7+ {[%clk
0:00:25.2]} 37... Kb4 {[%clk 0:00:24.1]} 38. Ra6 {[%clk 0:00:25.5]} 38... Rxh2
{[%clk 0:00:20]} 39. Rxb6 {[%clk 0:00:25.1]} 39... Kxc4 {[%clk 0:00:20.5]} 40.
Rb7 {[%clk 0:00:21.3]} 40... h5 {[%clk 0:00:15.8]} 41. b6 {[%clk 0:00:15.7]}
41... hxg4 {[%clk 0:00:14.9]} 42. Kxg4 {[%clk 0:00:16.1]} 42... Rxb2 {[%clk
0:00:14.8]} 43. Kg5 {[%clk 0:00:13.9]} 43... a3 {[%clk 0:00:15]} 44. Kxg6 {[%clk
0:00:12.5]} 44... a2 {[%clk 0:00:13]} 45. Ra7 {[%clk 0:00:10.9]} 45... Rxb6+
{[%clk 0:00:13.1]} 46. Kf5 {[%clk 0:00:11.8]} 46... Rb2 {[%clk 0:00:13.2]} 47.
Ke4 {[%clk 0:00:12.2]} 47... Rh2 {[%clk 0:00:12.5]} 48. Ke3 {[%clk 0:00:12.4]}
48... Kc3 {[%clk 0:00:12.2]} 49. Ra6 {[%clk 0:00:09.4]} 49... c4 {[%clk
0:00:12.2]} 50. Ra5 {[%clk 0:00:08.7]} 50... Kb2 {[%clk 0:00:11.1]} 51. Rb5+
{[%clk 0:00:08.4]} 51... Kc1 {[%clk 0:00:11.3]} 52. Ra5 {[%clk 0:00:07.7]} 52...
Kb1 {[%clk 0:00:11.4]} 53. Rb5+ {[%clk 0:00:07.7]} 53... Rb2 {[%clk 0:00:11.3]}
0-1

[Event "Early-Titled-Tuesday-Blitz-June-18-2024"]
[Site "Chess.com"]
[Date "2024.06.18"]
[Round "6"]
[White "Supelyel"]
[Black "shirovin"]
[Result "1-0"]
[WhiteElo "2440"]
[BlackElo "2108"]
[TimeControl "180+1"]
[EndTime "9:09:44 PDT"]
[Termination "Supelyel won on time"]

1. c4 {[%clk 0:03:00.9]} 1... f5 {[%clk 0:02:59.2]} 2. g3 {[%clk 0:02:56.5]}
2... Nf6 {[%clk 0:02:59.4]} 3. Bg2 {[%clk 0:02:55.9]} 3... g6 {[%clk 0:02:59.8]}
4. Nc3 {[%clk 0:02:55.7]} 4... Bg7 {[%clk 0:03:00.3]} 5. Qb3 {[%clk 0:02:55.3]}
5... O-O {[%clk 0:02:58.3]} 6. Bxb7 {[%clk 0:02:51.5]} 6... Bxb7 {[%clk
0:02:57.2]} 7. Qxb7 {[%clk 0:02:52.4]} 7... Nc6 {[%clk 0:02:57.3]} 8. Qb3 {[%clk
0:02:51.9]} 8... Rb8 {[%clk 0:02:56.5]} 9. Qc2 {[%clk 0:02:46.2]} 9... Nd4
{[%clk 0:02:48.6]} 10. Qd1 {[%clk 0:02:32.6]} 10... e5 {[%clk 0:02:47.8]} 11. e3
{[%clk 0:02:32.5]} 11... Nc6 {[%clk 0:02:46.7]} 12. d3 {[%clk 0:02:32.4]} 12...
d5 {[%clk 0:02:44.9]} 13. Nf3 {[%clk 0:02:21.2]} 13... dxc4 {[%clk 0:02:32.6]}
14. dxc4 {[%clk 0:02:17.3]} 14... Qxd1+ {[%clk 0:02:32.5]} 15. Kxd1 {[%clk
0:02:18.2]} 15... Rfd8+ {[%clk 0:02:31.6]} 16. Ke2 {[%clk 0:02:18.1]} 16... e4
{[%clk 0:02:12.6]} 17. Ng5 {[%clk 0:02:17.3]} 17... Ne5 {[%clk 0:01:45.6]} 18.
Ne6 {[%clk 0:02:15.3]} 18... Rd7 {[%clk 0:01:45]} 19. Nxg7 {[%clk 0:02:15.3]}
19... Kxg7 {[%clk 0:01:44.7]} 20. b3 {[%clk 0:02:15]} 20... Nd3 {[%clk
0:01:38.2]} 21. h3 {[%clk 0:01:41.1]} 21... Rbd8 {[%clk 0:01:34.2]} 22. Ba3
{[%clk 0:01:27.7]} 22... Ne5 {[%clk 0:01:29.1]} 23. Rhd1 {[%clk 0:01:21.4]}
23... Nf3 {[%clk 0:01:26.2]} 24. Rxd7+ {[%clk 0:01:16.2]} 24... Rxd7 {[%clk
0:01:22.9]} 25. Rd1 {[%clk 0:01:16.2]} 25... Kf7 {[%clk 0:01:03.9]} 26. h4
{[%clk 0:00:49.1]} 26... Rxd1 {[%clk 0:00:56.2]} 27. Kxd1 {[%clk 0:00:48.1]}
27... Ng4 {[%clk 0:00:55.6]} 28. Ke2 {[%clk 0:00:48.3]} 28... Ng1+ {[%clk
0:00:53.4]} 29. Kf1 {[%clk 0:00:47.3]} 29... Nh3 {[%clk 0:00:52]} 30. Nd1 {[%clk
0:00:47]} 30... g5 {[%clk 0:00:38]} 31. Kg2 {[%clk 0:00:47]} 31... gxh4 {[%clk
0:00:27.9]} 32. Kxh3 {[%clk 0:00:46]} 32... hxg3 {[%clk 0:00:28.1]} 33. fxg3
{[%clk 0:00:34.9]} 33... Ke6 {[%clk 0:00:26.5]} 34. Bc5 {[%clk 0:00:35.1]} 34...
a6 {[%clk 0:00:24.3]} 35. Kg2 {[%clk 0:00:34.4]} 35... Ne5 {[%clk 0:00:22.4]}
36. Bd4 {[%clk 0:00:34.2]} 36... Nd3 {[%clk 0:00:21.1]} 37. Nf2 {[%clk
0:00:32.5]} 37... Nc1 {[%clk 0:00:18.8]} 38. Bc3 {[%clk 0:00:25.2]} 38... Nxa2
{[%clk 0:00:17.4]} 39. Bd2 {[%clk 0:00:25.6]} 39... c5 {[%clk 0:00:15.7]} 40.
Kh3 {[%clk 0:00:25.2]} 40... Nb4 {[%clk 0:00:13.3]} 41. Bxb4 {[%clk 0:00:25.1]}
41... cxb4 {[%clk 0:00:13.8]} 42. Kg2 {[%clk 0:00:21.3]} 42... a5 {[%clk
0:00:14]} 43. Kf1 {[%clk 0:00:20.7]} 43... a4 {[%clk 0:00:14.1]} 44. bxa4 {[%clk
0:00:21]} 44... b3 {[%clk 0:00:14.2]} 45. Nd1 {[%clk 0:00:21.7]} 45... Kd6
{[%clk 0:00:13.3]} 46. Ke2 {[%clk 0:00:22.2]} 46... Kc5 {[%clk 0:00:13.6]} 47.
a5 {[%clk 0:00:22.6]} 47... Kxc4 {[%clk 0:00:06.4]} 48. a6 {[%clk 0:00:22.8]}
48... Kb4 {[%clk 0:00:05.9]} 49. a7 {[%clk 0:00:23]} 49... Ka3 {[%clk
0:00:06.5]} 50. a8=Q+ {[%clk 0:00:23.1]} 50... Kb4 {[%clk 0:00:05.9]} 51. Qa1
{[%clk 0:00:23]} 51... Kc4 {[%clk 0:00:06.2]} 52. Qb2 {[%clk 0:00:23.9]} 52...
Kb4 {[%clk 0:00:06.4]} 53. Nc3 {[%clk 0:00:24.3]} 53... Kc4 {[%clk 0:00:06.6]}
54. Na2 {[%clk 0:00:23.8]} 54... h6 {[%clk 0:00:05]} 55. Qa1 {[%clk 0:00:24.7]}
55... bxa2 {[%clk 0:00:02.7]} 56. Qxa2+ {[%clk 0:00:25]} 56... Kc5 {[%clk
0:00:02.5]} 57. Qd2 {[%clk 0:00:24]} 57... h5 {[%clk 0:00:01.7]} 58. Qd4+ {[%clk
0:00:24.9]} 58... Kc6 {[%clk 0:00:01.2]} 59. Qf6+ {[%clk 0:00:24.9]} 59... Kd5
{[%clk 0:00:01]} 60. Qxf5+ {[%clk 0:00:25.8]} 1-0